[Event "Late-Titled-Tuesday-Blitz-September-05-2023"]
[Site "Chess.com"]
[Date "2023.09.05"]
[Round "7"]
[White "WilsonPalencia21"]
[Black "Nick12772"]
[Result "0-1"]
[WhiteElo "2541"]
[BlackElo "2342"]
[TimeControl "180+1"]
[EndTime "15:15:49 PDT"]
[Termination "Nick12772 won by resignation"]

1. d4 {[%clk 0:02:59.2]} 1... Nf6 {[%clk 0:03:00]} 2. c4 {[%clk 0:02:58.6]} 2...
g6 {[%clk 0:03:00.5]} 3. Nf3 {[%clk 0:02:58.3]} 3... Bg7 {[%clk 0:03:00.5]} 4.
Nc3 {[%clk 0:02:58.9]} 4... d5 {[%clk 0:03:00.3]} 5. Bg5 {[%clk 0:02:57.9]} 5...
Ne4 {[%clk 0:03:00.6]} 6. cxd5 {[%clk 0:02:57.7]} 6... Nxg5 {[%clk 0:03:00.9]}
7. Nxg5 {[%clk 0:02:58.5]} 7... e6 {[%clk 0:03:01.8]} 8. Qd2 {[%clk 0:02:57.8]}
8... exd5 {[%clk 0:03:02.2]} 9. Qe3+ {[%clk 0:02:57.5]} 9... Kf8 {[%clk
0:03:02.9]} 10. Qf4 {[%clk 0:02:58]} 10... Bf6 {[%clk 0:03:03.6]} 11. h4 {[%clk
0:02:57.8]} 11... h6 {[%clk 0:03:04.2]} 12. Nf3 {[%clk 0:02:57.3]} 12... Kg7
{[%clk 0:03:04.2]} 13. e4 {[%clk 0:02:54.5]} 13... dxe4 {[%clk 0:03:04.1]} 14.
Nxe4 {[%clk 0:02:54]} 14... Re8 {[%clk 0:02:50.3]} 15. O-O-O {[%clk 0:02:53]}
15... Nc6 {[%clk 0:02:32.2]} 16. Bb5 {[%clk 0:02:51.5]} 16... Bf5 {[%clk
0:02:19.5]} 17. Nxf6 {[%clk 0:02:36.5]} 17... Qxf6 {[%clk 0:02:20.4]} 18. d5
{[%clk 0:02:30.5]} 18... Re4 {[%clk 0:02:07]} 19. Qd2 {[%clk 0:02:19.6]} 19...
Nb4 {[%clk 0:01:48.4]} 20. Rde1 {[%clk 0:02:12.6]} 20... Nxa2+ {[%clk
0:01:44.1]} 21. Kd1 {[%clk 0:02:12.4]} 21... c6 {[%clk 0:01:31.1]} 22. Bd3
{[%clk 0:02:03.4]} 22... cxd5 {[%clk 0:01:23.1]} 23. Bb1 {[%clk 0:01:40]} 23...
Nb4 {[%clk 0:01:15]} 24. Bxe4 {[%clk 0:01:28.6]} 24... dxe4 {[%clk 0:01:14.4]}
25. Qxb4 {[%clk 0:01:27.3]} 25... exf3 {[%clk 0:01:13.3]} 26. gxf3 {[%clk
0:01:16.8]} 26... Rd8+ {[%clk 0:01:11]} 27. Kc1 {[%clk 0:01:09.7]} 27... Rc8+
{[%clk 0:01:10.1]} 28. Kd2 {[%clk 0:01:05.8]} 28... Rc2+ {[%clk 0:01:07.3]} 29.
Ke3 {[%clk 0:01:03.7]} 29... Qe5+ {[%clk 0:00:59.9]} 0-1

[Event "Late-Titled-Tuesday-Blitz-September-05-2023"]
[Site "Chess.com"]
[Date "2023.09.05"]
[Round "7"]
[White "tptagain"]
[Black "eljanov"]
[Result "0-1"]
[WhiteElo "2976"]
[BlackElo "2892"]
[TimeControl "180+1"]
[EndTime "15:15:50 PDT"]
[Termination "eljanov won by resignation"]

1. Nf3 {[%clk 0:03:00.9]} 1... d5 {[%clk 0:02:59.5]} 2. c4 {[%clk 0:03:01.4]}
2... c6 {[%clk 0:02:59.1]} 3. e3 {[%clk 0:03:01.2]} 3... Nf6 {[%clk 0:02:58.9]}
4. Nc3 {[%clk 0:03:01.5]} 4... a6 {[%clk 0:02:58.8]} 5. d4 {[%clk 0:03:01.4]}
5... Bf5 {[%clk 0:02:57.8]} 6. h3 {[%clk 0:03:01.6]} 6... e6 {[%clk 0:02:56.6]}
7. g4 {[%clk 0:03:01.1]} 7... Bg6 {[%clk 0:02:54.4]} 8. Ne5 {[%clk 0:03:00.2]}
8... Nbd7 {[%clk 0:02:54.1]} 9. Nxg6 {[%clk 0:02:58.7]} 9... hxg6 {[%clk
0:02:53.7]} 10. Bd2 {[%clk 0:02:51.5]} 10... Bb4 {[%clk 0:02:49.6]} 11. Rc1
{[%clk 0:02:04.8]} 11... Bxc3 {[%clk 0:02:44.1]} 12. Bxc3 {[%clk 0:02:03]} 12...
Ne4 {[%clk 0:02:44.3]} 13. Bb4 {[%clk 0:01:57.1]} 13... Qb6 {[%clk 0:02:28.1]}
14. Qa4 {[%clk 0:01:43.7]} 14... a5 {[%clk 0:02:11.3]} 15. Ba3 {[%clk
0:01:42.8]} 15... f5 {[%clk 0:02:10.3]} 16. cxd5 {[%clk 0:01:15.8]} 16... exd5
{[%clk 0:02:09.8]} 17. Bd3 {[%clk 0:01:14.5]} 17... Kf7 {[%clk 0:01:53.8]} 18.
Qd1 {[%clk 0:01:13.6]} 18... Rae8 {[%clk 0:01:46.6]} 19. Kf1 {[%clk 0:00:46.5]}
19... Ndf6 {[%clk 0:01:43.1]} 20. Kg2 {[%clk 0:00:19.1]} 20... Qc7 {[%clk
0:01:38.6]} 21. Qf3 {[%clk 0:00:17.6]} 21... Rh4 {[%clk 0:01:38.6]} 22. gxf5
{[%clk 0:00:16.4]} 22... g5 {[%clk 0:01:39]} 23. Kf1 {[%clk 0:00:13.2]} 23...
Nd2+ {[%clk 0:01:38.1]} 0-1

[Event "Late-Titled-Tuesday-Blitz-September-05-2023"]
[Site "Chess.com"]
[Date "2023.09.05"]
[Round "7"]
[White "Ducke13"]
[Black "picturesquecheck"]
[Result "1-0"]
[WhiteElo "2462"]
[BlackElo "2297"]
[TimeControl "180+1"]
[EndTime "15:15:51 PDT"]
[Termination "Ducke13 won by resignation"]

1. d4 {[%clk 0:02:57.9]} 1... Nf6 {[%clk 0:02:56.7]} 2. g3 {[%clk 0:02:51.5]}
2... c5 {[%clk 0:02:54.8]} 3. d5 {[%clk 0:02:50.7]} 3... e6 {[%clk 0:02:54.6]}
4. c4 {[%clk 0:02:50.1]} 4... exd5 {[%clk 0:02:53.9]} 5. cxd5 {[%clk 0:02:51]}
5... g6 {[%clk 0:02:54.4]} 6. Nc3 {[%clk 0:02:51.9]} 6... Bg7 {[%clk 0:02:54.9]}
7. Nf3 {[%clk 0:02:52.1]} 7... d6 {[%clk 0:02:55.6]} 8. Bg2 {[%clk 0:02:52.6]}
8... O-O {[%clk 0:02:56.3]} 9. O-O {[%clk 0:02:53.3]} 9... Bg4 {[%clk
0:02:56.9]} 10. Re1 {[%clk 0:02:51.6]} 10... Re8 {[%clk 0:02:56.6]} 11. Nd2
{[%clk 0:02:51.3]} 11... a6 {[%clk 0:02:53.4]} 12. a4 {[%clk 0:02:50.7]} 12...
Bc8 {[%clk 0:02:43.7]} 13. Nc4 {[%clk 0:02:45.1]} 13... Rf8 {[%clk 0:02:26.5]}
14. e4 {[%clk 0:02:40.4]} 14... Ne8 {[%clk 0:02:18.4]} 15. e5 {[%clk 0:02:36.7]}
15... dxe5 {[%clk 0:02:17.1]} 16. Ne4 {[%clk 0:02:16.2]} 16... Nd7 {[%clk
0:02:02.6]} 17. a5 {[%clk 0:02:10.1]} 17... f5 {[%clk 0:01:56.9]} 18. Bg5 {[%clk
0:02:09.8]} 18... Nef6 {[%clk 0:01:45.1]} 19. Ned6 {[%clk 0:01:59.6]} 19... e4
{[%clk 0:01:40.3]} 20. Qd2 {[%clk 0:01:47.7]} 20... Qc7 {[%clk 0:01:33.8]} 21.
Bf4 {[%clk 0:01:34.7]} 21... Qd8 {[%clk 0:01:29.6]} 22. Rac1 {[%clk 0:01:27.5]}
22... Ng4 {[%clk 0:01:28.6]} 23. Nxc8 {[%clk 0:01:15.6]} 23... Rxc8 {[%clk
0:01:20.4]} 24. d6 {[%clk 0:01:14.8]} 24... Rb8 {[%clk 0:01:07.6]} 25. h3 {[%clk
0:01:11.1]} 25... Nge5 {[%clk 0:01:04.2]} 26. Nxe5 {[%clk 0:01:10.4]} 26... Bxe5
{[%clk 0:01:02.6]} 27. Qd5+ {[%clk 0:01:09.8]} 27... Rf7 {[%clk 0:00:54.4]} 28.
Bxe5 {[%clk 0:01:09.7]} 28... Nxe5 {[%clk 0:00:53.2]} 29. Qxe5 {[%clk
0:01:10.6]} 1-0

[Event "Late-Titled-Tuesday-Blitz-September-05-2023"]
[Site "Chess.com"]
[Date "2023.09.05"]
[Round "7"]
[White "FaustinoOro"]
[Black "nevermind242"]
[Result "1-0"]
[WhiteElo "2842"]
[BlackElo "2374"]
[TimeControl "180+1"]
[EndTime "15:15:57 PDT"]
[Termination "FaustinoOro won on time"]

1. e4 {[%clk 0:03:00.9]} 1... e6 {[%clk 0:02:58]} 2. d4 {[%clk 0:03:00.8]} 2...
d5 {[%clk 0:02:58.6]} 3. Nd2 {[%clk 0:02:59.8]} 3... Nc6 {[%clk 0:02:58.7]} 4.
Ngf3 {[%clk 0:02:59]} 4... Nf6 {[%clk 0:02:58.7]} 5. e5 {[%clk 0:02:59]} 5...
Nd7 {[%clk 0:02:59]} 6. Nb3 {[%clk 0:02:57.5]} 6... a5 {[%clk 0:02:59.3]} 7. a4
{[%clk 0:02:57.1]} 7... f6 {[%clk 0:02:59.3]} 8. exf6 {[%clk 0:02:57.5]} 8...
Qxf6 {[%clk 0:02:59.9]} 9. c3 {[%clk 0:02:57.4]} 9... Bd6 {[%clk 0:02:59.4]} 10.
Be2 {[%clk 0:02:52]} 10... O-O {[%clk 0:02:57.7]} 11. O-O {[%clk 0:02:52.7]}
11... e5 {[%clk 0:02:56]} 12. dxe5 {[%clk 0:02:50.6]} 12... Ndxe5 {[%clk
0:02:56.9]} 13. Qxd5+ {[%clk 0:02:20.8]} 13... Be6 {[%clk 0:02:55.6]} 14. Qd1
{[%clk 0:02:21.5]} 14... Nxf3+ {[%clk 0:01:55.5]} 15. Bxf3 {[%clk 0:02:22.4]}
15... Rad8 {[%clk 0:01:55.2]} 16. Nd4 {[%clk 0:02:00.7]} 16... Nxd4 {[%clk
0:01:28.9]} 17. cxd4 {[%clk 0:02:00.6]} 17... Bb4 {[%clk 0:01:24.1]} 18. Be3
{[%clk 0:01:54.9]} 18... Bc4 {[%clk 0:01:22.2]} 19. Be2 {[%clk 0:01:52.8]} 19...
Bd5 {[%clk 0:01:12.4]} 20. Bd3 {[%clk 0:01:44.9]} 20... Bd6 {[%clk 0:00:57.4]}
21. Qh5 {[%clk 0:01:36.6]} 21... Bxg2 {[%clk 0:00:04.7]} 22. Bxh7+ {[%clk
0:01:35.1]} 1-0

[Event "Late-Titled-Tuesday-Blitz-September-05-2023"]
[Site "Chess.com"]
[Date "2023.09.05"]
[Round "7"]
[White "copanchess"]
[Black "traack"]
[Result "0-1"]
[WhiteElo "2177"]
[BlackElo "2377"]
[TimeControl "180+1"]
[EndTime "15:15:59 PDT"]
[Termination "traack won by checkmate"]

1. e4 {[%clk 0:03:00.9]} 1... c5 {[%clk 0:03:00]} 2. d4 {[%clk 0:03:00.5]} 2...
cxd4 {[%clk 0:02:59.8]} 3. c3 {[%clk 0:03:00.5]} 3... Nf6 {[%clk 0:03:00.3]} 4.
e5 {[%clk 0:03:00.1]} 4... Nd5 {[%clk 0:03:00.2]} 5. Nf3 {[%clk 0:03:00.5]} 5...
e6 {[%clk 0:03:00.2]} 6. cxd4 {[%clk 0:03:00.4]} 6... d6 {[%clk 0:03:00.6]} 7.
Bc4 {[%clk 0:02:54.3]} 7... Be7 {[%clk 0:02:58.3]} 8. O-O {[%clk 0:02:53.6]}
8... O-O {[%clk 0:02:58.5]} 9. Qe2 {[%clk 0:02:52.6]} 9... b6 {[%clk 0:02:56.3]}
10. Nc3 {[%clk 0:02:50.7]} 10... Nxc3 {[%clk 0:02:53]} 11. bxc3 {[%clk
0:02:50.4]} 11... Bb7 {[%clk 0:02:52.3]} 12. Re1 {[%clk 0:02:34.6]} 12... Nd7
{[%clk 0:02:51.9]} 13. exd6 {[%clk 0:02:19.2]} 13... Bxd6 {[%clk 0:02:51.1]} 14.
Ng5 {[%clk 0:02:06.3]} 14... h6 {[%clk 0:02:45.6]} 15. Nxe6 {[%clk 0:02:01.6]}
15... Bxh2+ {[%clk 0:02:24.9]} 16. Kxh2 {[%clk 0:01:58.4]} 16... fxe6 {[%clk
0:02:22.9]} 17. Bxe6+ {[%clk 0:01:54.4]} 17... Kh8 {[%clk 0:02:22.8]} 18. Qh5
{[%clk 0:01:48.7]} 18... Nf6 {[%clk 0:02:18.5]} 19. Qh4 {[%clk 0:01:48.5]} 19...
Qc7+ {[%clk 0:02:16.1]} 20. Kg1 {[%clk 0:01:35.7]} 20... Rae8 {[%clk 0:02:01.3]}
21. Bf4 {[%clk 0:01:14.7]} 21... Qxc3 {[%clk 0:01:34.3]} 22. Bxh6 {[%clk
0:00:21.4]} 22... gxh6 {[%clk 0:01:33]} 23. Qxh6+ {[%clk 0:00:21.2]} 23... Nh7
{[%clk 0:01:33.5]} 24. Rac1 {[%clk 0:00:17.8]} 24... Qxd4 {[%clk 0:01:32.5]} 25.
Rc7 {[%clk 0:00:17]} 25... Qxf2+ {[%clk 0:01:32.8]} 26. Kh1 {[%clk 0:00:14.7]}
26... Qxg2# {[%clk 0:01:33.7]} 0-1

[Event "Late-Titled-Tuesday-Blitz-September-05-2023"]
[Site "Chess.com"]
[Date "2023.09.05"]
[Round "7"]
[White "rdarruda"]
[Black "wild3000"]
[Result "0-1"]
[WhiteElo "2511"]
[BlackElo "2354"]
[TimeControl "180+1"]
[EndTime "15:16:00 PDT"]
[Termination "wild3000 won by resignation"]

1. d4 {[%clk 0:02:57.6]} 1... Nf6 {[%clk 0:02:58.7]} 2. Nf3 {[%clk 0:02:56.5]}
2... b6 {[%clk 0:02:58.7]} 3. Nc3 {[%clk 0:02:55.7]} 3... Bb7 {[%clk 0:02:58.8]}
4. g3 {[%clk 0:02:56.3]} 4... e6 {[%clk 0:02:57.3]} 5. Bg2 {[%clk 0:02:56.3]}
5... Bb4 {[%clk 0:02:56.9]} 6. Bd2 {[%clk 0:02:55.3]} 6... d5 {[%clk 0:02:54.5]}
7. O-O {[%clk 0:02:55.2]} 7... O-O {[%clk 0:02:54.1]} 8. a3 {[%clk 0:02:54.2]}
8... Be7 {[%clk 0:02:51.1]} 9. Ne5 {[%clk 0:02:53]} 9... Nbd7 {[%clk 0:02:50.1]}
10. f4 {[%clk 0:02:51.8]} 10... c5 {[%clk 0:02:49.2]} 11. e3 {[%clk 0:02:51.9]}
11... Ne4 {[%clk 0:02:49.2]} 12. Nxe4 {[%clk 0:02:49]} 12... dxe4 {[%clk
0:02:49.2]} 13. c3 {[%clk 0:02:49]} 13... f6 {[%clk 0:02:45.9]} 14. Nxd7 {[%clk
0:02:48.5]} 14... Qxd7 {[%clk 0:02:46.1]} 15. Qc2 {[%clk 0:02:41.8]} 15... cxd4
{[%clk 0:02:45.3]} 16. exd4 {[%clk 0:02:40.4]} 16... f5 {[%clk 0:02:45]} 17.
Rfd1 {[%clk 0:02:36]} 17... b5 {[%clk 0:02:43.4]} 18. a4 {[%clk 0:02:31.8]}
18... a6 {[%clk 0:02:43]} 19. Bf1 {[%clk 0:02:30.1]} 19... Bd5 {[%clk
0:02:41.4]} 20. Be3 {[%clk 0:02:23.6]} 20... Rfc8 {[%clk 0:02:38.4]} 21. Qe2
{[%clk 0:02:22.3]} 21... Bc4 {[%clk 0:02:37.7]} 22. Qh5 {[%clk 0:02:21.4]} 22...
Bb3 {[%clk 0:02:33.3]} 23. Rdb1 {[%clk 0:02:15]} 23... bxa4 {[%clk 0:02:31.1]}
24. g4 {[%clk 0:02:12.1]} 24... g6 {[%clk 0:02:29.6]} 25. Qh6 {[%clk 0:02:10.8]}
25... Bf8 {[%clk 0:02:24.7]} 26. Qh4 {[%clk 0:02:10.8]} 26... Qe7 {[%clk
0:02:24.4]} 27. Qg3 {[%clk 0:02:08.8]} 27... Kf7 {[%clk 0:02:15.1]} 28. Be2
{[%clk 0:02:05.2]} 28... Rcb8 {[%clk 0:02:11.7]} 29. h4 {[%clk 0:02:00.4]} 29...
Bc2 {[%clk 0:02:11.3]} 30. Rc1 {[%clk 0:01:59.9]} 30... Rxb2 {[%clk 0:02:10.6]}
31. h5 {[%clk 0:02:00.2]} 31... Bb3 {[%clk 0:01:59.7]} 32. Kf1 {[%clk
0:01:54.2]} 32... a3 {[%clk 0:01:48.2]} 33. hxg6+ {[%clk 0:01:50.8]} 33... hxg6
{[%clk 0:01:49.1]} 34. gxf5 {[%clk 0:01:50.1]} 34... exf5 {[%clk 0:01:49.2]} 35.
c4 {[%clk 0:01:50]} 35... Bg7 {[%clk 0:01:38.8]} 36. c5 {[%clk 0:01:46.2]} 36...
a2 {[%clk 0:01:33.8]} 37. Rc3 {[%clk 0:01:41.6]} 37... Bd5 {[%clk 0:01:30.2]}
38. Bc1 {[%clk 0:01:30.4]} 38... Rb1 {[%clk 0:01:24.1]} 39. Bc4 {[%clk
0:01:30.2]} 39... Bxc4+ {[%clk 0:01:20.5]} 40. Rxc4 {[%clk 0:01:30.4]} 40...
Rxa1 {[%clk 0:01:19.8]} 41. Qb3 {[%clk 0:01:30.9]} 41... Qe6 {[%clk 0:01:00]}
42. d5 {[%clk 0:01:29.8]} 42... Qxd5 {[%clk 0:00:55.8]} 43. Qb7+ {[%clk
0:01:29.8]} 43... Qxb7 {[%clk 0:00:55.5]} 0-1

[Event "Late-Titled-Tuesday-Blitz-September-05-2023"]
[Site "Chess.com"]
[Date "2023.09.05"]
[Round "7"]
[White "Jaka_Brilej"]
[Black "valemava"]
[Result "0-1"]
[WhiteElo "2455"]
[BlackElo "2306"]
[TimeControl "180+1"]
[EndTime "15:16:03 PDT"]
[Termination "valemava won by checkmate"]

1. e4 {[%clk 0:03:00.9]} 1... c5 {[%clk 0:02:59.7]} 2. Nf3 {[%clk 0:03:00.9]}
2... Qa5 {[%clk 0:02:59.5]} 3. Nc3 {[%clk 0:02:59]} 3... a6 {[%clk 0:02:58.5]}
4. d4 {[%clk 0:02:59]} 4... b5 {[%clk 0:02:58.1]} 5. dxc5 {[%clk 0:02:53.7]}
5... e6 {[%clk 0:02:58.2]} 6. Bd2 {[%clk 0:02:49.5]} 6... b4 {[%clk 0:02:59.1]}
7. Ne2 {[%clk 0:02:42.9]} 7... Bxc5 {[%clk 0:02:58.9]} 8. a3 {[%clk 0:02:41.6]}
8... Qb6 {[%clk 0:02:59]} 9. Be3 {[%clk 0:02:34.5]} 9... Bxe3 {[%clk 0:02:58.4]}
10. fxe3 {[%clk 0:02:35.4]} 10... Qxe3 {[%clk 0:02:58.3]} 11. axb4 {[%clk
0:02:31.2]} 11... Qxe4 {[%clk 0:02:57.6]} 12. Qd4 {[%clk 0:02:17.4]} 12... Qxd4
{[%clk 0:02:51.8]} 13. Nexd4 {[%clk 0:02:18.3]} 13... Bb7 {[%clk 0:02:51.5]} 14.
Be2 {[%clk 0:02:11.1]} 14... Nf6 {[%clk 0:02:50.8]} 15. O-O {[%clk 0:02:10.6]}
15... Ke7 {[%clk 0:02:45.1]} 16. Rfe1 {[%clk 0:02:06]} 16... Nc6 {[%clk
0:02:41.9]} 17. Nf5+ {[%clk 0:01:51.2]} 17... exf5 {[%clk 0:02:25.3]} 18. Bxa6+
{[%clk 0:01:50]} 18... Ne4 {[%clk 0:02:25.4]} 19. Bxb7 {[%clk 0:01:48]} 19...
Rxa1 {[%clk 0:02:25.1]} 20. Rxa1 {[%clk 0:01:48.7]} 20... Nxb4 {[%clk
0:02:24.9]} 21. c3 {[%clk 0:01:44.4]} 21... Nd3 {[%clk 0:02:08.5]} 22. Nd4
{[%clk 0:01:34.3]} 22... g6 {[%clk 0:02:04.3]} 23. Ra7 {[%clk 0:01:28.2]} 23...
Kf6 {[%clk 0:01:45.1]} 24. Bxe4 {[%clk 0:01:23.5]} 24... fxe4 {[%clk 0:01:46]}
25. Rxd7 {[%clk 0:01:23.1]} 25... Nxb2 {[%clk 0:01:45.7]} 26. Kf2 {[%clk
0:01:20.4]} 26... Rc8 {[%clk 0:01:44.4]} 27. Nb5 {[%clk 0:01:14.9]} 27... Na4
{[%clk 0:01:37.7]} 28. Nd6 {[%clk 0:01:09.1]} 28... Ke6 {[%clk 0:01:23]} 29.
Nxc8 {[%clk 0:01:02.9]} 29... Kxd7 {[%clk 0:01:22.3]} 30. Nb6+ {[%clk 0:00:59]}
30... Nxb6 {[%clk 0:01:21.2]} 31. Ke3 {[%clk 0:00:57.7]} 31... f5 {[%clk
0:01:20.2]} 32. g4 {[%clk 0:00:56.6]} 32... Ke6 {[%clk 0:01:18.1]} 33. gxf5+
{[%clk 0:00:56.5]} 33... gxf5 {[%clk 0:01:17.7]} 34. h4 {[%clk 0:00:56.7]} 34...
Ke5 {[%clk 0:01:17.3]} 35. h5 {[%clk 0:00:57]} 35... f4+ {[%clk 0:01:16.6]} 36.
Ke2 {[%clk 0:00:57.9]} 36... Nc4 {[%clk 0:01:16.6]} 37. h6 {[%clk 0:00:58.2]}
37... f3+ {[%clk 0:01:16.4]} 38. Kf2 {[%clk 0:00:58]} 38... Kf4 {[%clk
0:01:16.4]} 39. Kf1 {[%clk 0:00:58.1]} 39... e3 {[%clk 0:01:16.6]} 40. Ke1
{[%clk 0:00:58.9]} 40... f2+ {[%clk 0:01:14]} 41. Kf1 {[%clk 0:00:59.3]} 41...
Nd2+ {[%clk 0:01:14]} 42. Ke2 {[%clk 0:00:59.8]} 42... f1=Q# {[%clk 0:01:13.6]}
0-1

[Event "Late-Titled-Tuesday-Blitz-September-05-2023"]
[Site "Chess.com"]
[Date "2023.09.05"]
[Round "7"]
[White "Aygehovit1992"]
[Black "jefferyx"]
[Result "1-0"]
[WhiteElo "2725"]
[BlackElo "3006"]
[TimeControl "180+1"]
[EndTime "15:16:05 PDT"]
[Termination "Aygehovit1992 won by resignation"]

1. e4 {[%clk 0:03:00.9]} 1... c6 {[%clk 0:02:59.7]} 2. d4 {[%clk 0:03:00.6]}
2... d5 {[%clk 0:03:00.2]} 3. e5 {[%clk 0:03:01.3]} 3... Bf5 {[%clk 0:03:00.3]}
4. Nf3 {[%clk 0:03:02]} 4... e6 {[%clk 0:03:01]} 5. Be2 {[%clk 0:03:02.5]} 5...
Ne7 {[%clk 0:03:01.7]} 6. O-O {[%clk 0:03:01.9]} 6... h6 {[%clk 0:03:02.3]} 7.
Nbd2 {[%clk 0:03:01.7]} 7... Nd7 {[%clk 0:03:02.9]} 8. Nb3 {[%clk 0:03:02]} 8...
Bh7 {[%clk 0:03:03.4]} 9. a4 {[%clk 0:03:01.1]} 9... Ng6 {[%clk 0:03:03.5]} 10.
a5 {[%clk 0:02:58.1]} 10... Be7 {[%clk 0:03:04.2]} 11. c4 {[%clk 0:02:57.9]}
11... O-O {[%clk 0:03:04]} 12. Be3 {[%clk 0:02:50.7]} 12... f6 {[%clk
0:03:03.7]} 13. exf6 {[%clk 0:02:46.6]} 13... Nxf6 {[%clk 0:03:02.9]} 14. h3
{[%clk 0:02:27.9]} 14... Bd6 {[%clk 0:03:02.3]} 15. Re1 {[%clk 0:02:16.7]} 15...
Ne4 {[%clk 0:02:58.8]} 16. Nc5 {[%clk 0:02:13.6]} 16... Bxc5 {[%clk 0:02:51.8]}
17. dxc5 {[%clk 0:02:14.5]} 17... Nf4 {[%clk 0:02:52.5]} 18. Bf1 {[%clk
0:02:13.2]} 18... Qf6 {[%clk 0:02:50.6]} 19. a6 {[%clk 0:01:53.9]} 19... Rab8
{[%clk 0:02:33.9]} 20. Bd4 {[%clk 0:01:24.8]} 20... Qg6 {[%clk 0:02:34]} 21. Kh2
{[%clk 0:01:24.5]} 21... Qh5 {[%clk 0:02:26.3]} 22. Ne5 {[%clk 0:01:19.4]} 22...
Qe8 {[%clk 0:02:13.5]} 23. f3 {[%clk 0:01:06.7]} 23... Nf6 {[%clk 0:02:13.7]}
24. Qa4 {[%clk 0:00:45.6]} 24... Ng6 {[%clk 0:02:06.8]} 25. axb7 {[%clk
0:00:39.9]} 25... Nxe5 {[%clk 0:02:06.3]} 26. Bxe5 {[%clk 0:00:40.8]} 26... Rxb7
{[%clk 0:02:06.6]} 27. Bxf6 {[%clk 0:00:39]} 27... Rxf6 {[%clk 0:02:01.5]} 28.
cxd5 {[%clk 0:00:39.3]} 28... Qb8+ {[%clk 0:02:02.1]} 29. d6 {[%clk 0:00:38.7]}
29... Rxb2 {[%clk 0:01:29.4]} 30. Qxc6 {[%clk 0:00:38.6]} 30... Bf5 {[%clk
0:01:22.8]} 31. Qc7 {[%clk 0:00:33.3]} 31... Qb4 {[%clk 0:01:20.6]} 32. d7
{[%clk 0:00:28.9]} 1-0

[Event "Late-Titled-Tuesday-Blitz-September-05-2023"]
[Site "Chess.com"]
[Date "2023.09.05"]
[Round "7"]
[White "kikoveiga"]
[Black "HeinichessPY"]
[Result "1-0"]
[WhiteElo "2570"]
[BlackElo "2249"]
[TimeControl "180+1"]
[EndTime "15:16:18 PDT"]
[Termination "kikoveiga won by resignation"]

1. c4 {[%clk 0:02:56.9]} 1... c5 {[%clk 0:02:45.8]} 2. g3 {[%clk 0:02:55.6]}
2... Nc6 {[%clk 0:02:45.1]} 3. Bg2 {[%clk 0:02:56.1]} 3... g6 {[%clk 0:02:42.7]}
4. Nc3 {[%clk 0:02:53.4]} 4... Bg7 {[%clk 0:02:41.3]} 5. a3 {[%clk 0:02:53.6]}
5... Nf6 {[%clk 0:02:41.1]} 6. Rb1 {[%clk 0:02:54]} 6... O-O {[%clk 0:02:36.4]}
7. b4 {[%clk 0:02:51]} 7... d6 {[%clk 0:02:28.2]} 8. Nf3 {[%clk 0:02:44.2]} 8...
e5 {[%clk 0:02:25.6]} 9. d3 {[%clk 0:02:41.6]} 9... Bg4 {[%clk 0:02:23.3]} 10.
O-O {[%clk 0:02:40.4]} 10... Qd7 {[%clk 0:02:23.6]} 11. Bg5 {[%clk 0:02:35.9]}
11... Bh3 {[%clk 0:02:17.6]} 12. Bxf6 {[%clk 0:02:21.2]} 12... Bxf6 {[%clk
0:02:16.3]} 13. Nd5 {[%clk 0:02:21.5]} 13... Bg7 {[%clk 0:02:13.4]} 14. Bxh3
{[%clk 0:02:21]} 14... Qxh3 {[%clk 0:02:13.4]} 15. bxc5 {[%clk 0:02:21.1]} 15...
dxc5 {[%clk 0:02:10.3]} 16. Rxb7 {[%clk 0:02:20.5]} 16... f5 {[%clk 0:02:04.3]}
17. Ng5 {[%clk 0:02:16.1]} 17... Qh5 {[%clk 0:01:55.9]} 18. Ne6 {[%clk
0:02:15.2]} 18... Nd4 {[%clk 0:01:47]} 19. Rxg7+ {[%clk 0:02:08.4]} 19... Kh8
{[%clk 0:01:45.5]} 20. Nxd4 {[%clk 0:02:04.6]} 20... Kxg7 {[%clk 0:01:30.9]} 21.
Ne6+ {[%clk 0:02:03.7]} 21... Kh8 {[%clk 0:01:30.6]} 22. Nxf8 {[%clk 0:02:04.6]}
22... Rxf8 {[%clk 0:01:30.5]} 23. e3 {[%clk 0:02:03.4]} 23... Qh3 {[%clk
0:01:29.5]} 24. Qb3 {[%clk 0:02:00.5]} 24... f4 {[%clk 0:01:28.3]} 25. exf4
{[%clk 0:02:00.4]} 25... exf4 {[%clk 0:01:28.8]} 26. Qb2+ {[%clk 0:01:54]} 26...
Kg8 {[%clk 0:01:20.1]} 27. Ne7+ {[%clk 0:01:53.6]} 27... Kf7 {[%clk 0:01:17.9]}
28. Qb7 {[%clk 0:01:53.5]} 28... f3 {[%clk 0:01:09.6]} 29. Nf5+ {[%clk
0:01:48.6]} 29... Ke6 {[%clk 0:00:58.7]} 30. Ne3 {[%clk 0:01:41]} 30... Rf5
{[%clk 0:00:49.8]} 31. Qe4+ {[%clk 0:01:37.1]} 31... Kf7 {[%clk 0:00:43]} 32.
Qg4 {[%clk 0:01:28.7]} 32... Qh6 {[%clk 0:00:22.6]} 33. Nxf5 {[%clk 0:01:26.3]}
33... gxf5 {[%clk 0:00:22.5]} 34. Qxf3 {[%clk 0:01:26.3]} 1-0